bitfinex/quotes_BTCUSD_20220731
["timestamp","ask_amount","ask_price","bid_price","bid_amount"]
[1659282436240,0.29895631,23751.0,23748.0,0.216229]
[1659282437068,0.2781621,23751.0,23748.0,0.216229]
[1659282437323,0.2781621,23751.0,23748.0,0.155229]
[1659282438143,0.2781621,23751.0,23748.0,0.24390216]
[1659282438599,0.2781621,23751.0,23748.0,0.209229]
[1659282439577,0.2781621,23751.0,23748.0,0.155229]
[1659282440024,0.2781621,23751.0,23748.0,0.209229]
[1659282440507,0.2781621,23751.0,23748.0,0.419679]
[1659282440686,0.35793016,23756.0,23750.0,0.15]
[1659282440914,0.05,23757.0,23751.0,0.631251]
[1659282441166,0.026556,23756.0,23751.0,0.631251]
[1659282441623,0.026556,23756.0,23752.0,0.105208]
[1659282441860,0.96768733,23757.0,23753.0,0.03467316]
[1659282442080,0.236998,23756.0,23753.0,0.05]
[1659282442291,0.236998,23756.0,23752.0,0.105219]
[1659282442292,0.210442,23756.0,23752.0,0.105219]
[1659282442514,0.026556,23755.0,23752.0,0.105219]
[1659282442799,0.210442,23756.0,23752.0,0.105219]
[1659282443036,0.026556,23755.0,23752.0,0.10758439]
[1659282443265,0.210442,23756.0,23752.0,0.10758439]
[1659282443500,0.026556,23755.0,23752.0,0.10758439]
[1659282443714,0.210442,23756.0,23752.0,0.10758439]
[1659282443968,0.026556,23755.0,23752.0,0.10758439]
[1659282444166,0.210442,23756.0,23752.0,0.15658439]
[1659282444385,0.18965575,23756.0,23752.0,0.15658439]
[1659282444623,0.026556,23755.0,23752.0,0.15658439]
[1659282444849,0.026556,23755.0,23753.0,0.14008571]
[1659282445103,0.75725733,23757.0,23753.0,0.14008571]
[1659282445347,0.026556,23756.0,23753.0,0.14008571]
[1659282445795,0.75725733,23757.0,23753.0,0.10521]
[1659282446025,0.026556,23756.0,23753.0,0.364624]
[1659282446222,0.026556,23756.0,23753.0,0.15421]
[1659282446475,0.026556,23756.0,23753.0,0.28321]
[1659282446745,0.45725733,23757.0,23754.0,0.105211]
[1659282446986,0.026556,23756.0,23754.0,0.105211]
[1659282447638,0.45725733,23757.0,23754.0,0.105211]
[1659282447859,0.01527853,23756.0,23754.0,0.105211]
[1659282448083,0.44597986,23757.0,23754.0,0.179211]
[1659282448282,0.43673233,23757.0,23754.0,0.179211]
[1659282448528,0.42717575,23757.0,23754.0,0.179211]
[1659282448719,0.41240302,23757.0,23754.0,0.179211]
[1659282448986,0.40660376,23757.0,23754.0,0.179211]
[1659282449406,0.40660376,23757.0,23754.0,0.105211]
[1659282450073,0.40660376,23757.0,23754.0,0.172211]
[1659282451305,0.40660376,23757.0,23754.0,0.105211]
[1659282451605,0.38581645,23757.0,23754.0,0.105211]
[1659282451801,0.35533599,23757.0,23754.0,0.105211]
[1659282452002,0.33454443,23757.0,23754.0,0.171211]
[1659282452241,0.31375234,23757.0,23754.0,0.171211]
[1659282452454,0.40725733,23756.0,23754.0,0.066]
[1659282452685,0.210447,23755.0,23754.0,0.066]
[1659282452933,0.61770433,23755.0,23754.0,0.066]
[1659282453413,0.61770433,23755.0,23753.0,0.00236322]
[1659282453646,0.40725733,23754.0,23753.0,0.00236322]
[1659282454082,0.40725733,23754.0,23753.0,0.07936322]
[1659282455208,0.38647002,23754.0,23753.0,0.07936322]
[1659282455432,0.36568271,23754.0,23753.0,0.07936322]
[1659282455677,0.32410809,23754.0,23753.0,0.07936322]
[1659282455898,0.2825271,23754.0,23753.0,0.00236322]
[1659282456123,0.25419718,23754.0,23753.0,0.08236322]
[1659282456355,0.23340456,23754.0,23753.0,0.08236322]
[1659282457506,0.23340456,23754.0,23753.0,0.00236322]
[1659282458258,0.23340456,23754.0,23753.0,0.05536322]
[1659282459138,0.420867,23758.0,23753.0,0.05536322]
[1659282459139,0.18964626,23755.0,23753.0,0.05536322]
[1659282459378,0.40725733,23755.0,23753.0,0.05236322]
[1659282459598,0.38646259,23755.0,23753.0,0.05236322]
[1659282459819,0.38646259,23755.0,23753.0,0.00236322]
[1659282460029,0.38646259,23755.0,23754.0,0.05]
[1659282460764,0.40725733,23756.0,23754.0,0.08467316]
[1659282460985,0.210424,23757.0,23754.0,0.18988416]
[1659282460986,0.61768133,23757.0,23754.0,0.18988416]
[1659282462142,0.61768133,23757.0,23754.0,0.25288416]
[1659282462390,0.61768133,23757.0,23754.0,0.25309001]
[1659282462621,0.59688659,23757.0,23754.0,0.25309001]
[1659282463946,0.59688659,23757.0,23754.0,0.218211]
[1659282464177,0.59688659,23757.0,23754.0,0.281211]
[1659282464448,0.59688659,23757.0,23754.0,0.218211]
[1659282464695,0.59688659,23757.0,23754.0,0.113]
[1659282465351,0.59688659,23757.0,23754.0,0.05]
[1659282465577,0.59688659,23757.0,23756.0,0.05]
[1659282465899,0.59688659,23757.0,23754.0,0.05]
[1659282466242,0.57609503,23757.0,23754.0,0.113]
[1659282466482,0.53451191,23757.0,23754.0,0.113]
[1659282466686,0.51372035,23757.0,23754.0,0.113]
[1659282467350,0.51372035,23757.0,23754.0,0.05]
[1659282468264,0.51372035,23757.0,23754.0,0.067]
[1659282469167,0.51372035,23757.0,23754.0,0.117]
[1659282469415,0.51372035,23757.0,23754.0,0.05]
[1659282469664,0.51372035,23757.0,23753.0,0.00236322]
[1659282469897,0.49292773,23757.0,23753.0,0.00236322]
[1659282470134,0.45134249,23757.0,23754.0,0.068]
[1659282470375,0.38646471,23756.0,23754.0,0.118]
[1659282470596,0.36567156,23756.0,23754.0,0.118]
[1659282470834,0.631437,23755.0,23754.0,0.118]
[1659282471067,0.631437,23755.0,23754.0,0.068]
[1659282471068,1.03869433,23755.0,23754.0,0.068]
[1659282471519,1.03869433,23755.0,23753.0,0.00236322]
[1659282472258,0.631437,23755.0,23754.0,0.08]
[1659282472484,1.03869433,23755.0,23754.0,0.08]
[1659282473360,1.48219433,23755.0,23753.0,0.00236322]
[1659282473647,0.82994984,23754.0,23753.0,0.00236322]
[1659282473858,0.78833539,23754.0,23753.0,0.00236322]
[1659282474092,0.76752843,23754.0,23753.0,0.00236322]
[1659282474332,0.74672147,23754.0,23753.0,0.00236322]
[1659282475236,0.72591451,23754.0,23753.0,0.00236322]
[1659282475480,0.24080059,23754.0,23753.0,0.00236322]
[1659282475710,0.19918667,23754.0,23753.0,0.00236322]
[1659282476204,0.5669,23758.0,23754.0,0.05]
[1659282476205,0.75650951,23758.0,23754.0,0.05]
[1659282476441,0.70000001,23757.0,23754.0,0.4788]
[1659282476680,0.210443,23756.0,23754.0,0.4788]
[1659282476898,0.18963764,23756.0,23755.0,0.05]
[1659282477130,0.14802692,23756.0,23754.0,0.2188]
[1659282477396,0.12722156,23756.0,23754.0,0.2188]
[1659282477616,0.1064146,23756.0,23754.0,0.25347316]
[1659282477849,0.1064146,23756.0,23754.0,0.04]
[1659282477850,0.40725733,23755.0,23754.0,0.04]
[1659282478085,0.40725733,23755.0,23754.0,0.079]
[1659282479432,0.40725733,23755.0,23753.0,0.00236322]
[1659282480150,0.40725733,23755.0,23753.0,0.00736322]
[1659282481463,0.40725733,23755.0,23753.0,0.00236322]
[1659282482132,0.40725733,23755.0,23753.0,0.00736322]
[1659282483474,0.40725733,23755.0,23753.0,0.00236322]
[1659282489430,0.61773633,23755.0,23753.0,0.00236322]
[1659282489639,0.40725733,23754.0,23753.0,0.00236322]
[1659282492121,0.40725733,23754.0,23753.0,0.02736322]
[1659282493892,0.40725733,23754.0,23753.0,0.00236322]
[1659282494133,0.40725733,23754.0,23753.0,0.02736322]
[1659282495466,0.40725733,23754.0,23753.0,0.00236322]
[1659282496110,0.40725733,23754.0,23753.0,0.02736322]
[1659282497231,0.40808119,23754.0,23753.0,0.02736322]
[1659282497967,0.40808119,23754.0,23753.0,0.00236322]
[1659282498129,0.40808119,23754.0,23753.0,0.02736322]
[1659282499056,0.40808119,23754.0,23753.0,0.06733495]
[1659282499057,0.00082386,23754.0,23753.0,0.06733495]
[1659282499285,0.00082386,23754.0,23753.0,0.02736322]
[1659282499516,0.00082386,23754.0,23753.0,0.00225959]
[1659282499968,0.00082386,23754.0,23753.0,0.03693275]
[1659282500217,0.00082386,23754.0,23753.0,0.04825959]
[1659282501538,0.00082386,23754.0,23753.0,0.00225959]
[1659282502249,0.00082386,23754.0,23753.0,0.04825959]
[1659282503368,0.00082386,23754.0,23753.0,0.00225959]
[1659282504040,0.00082386,23754.0,23753.0,0.04825959]
[1659282505442,0.00082386,23754.0,23753.0,0.00225959]
[1659282506060,0.00082386,23754.0,23753.0,0.04825959]
[1659282507388,0.00082386,23754.0,23753.0,0.00225959]
[1659282508058,0.00082386,23754.0,23753.0,0.04825959]
[1659282509419,0.00082386,23754.0,23753.0,0.00225959]
[1659282510764,0.1920975,23755.0,23753.0,0.00225959]
[1659282511020,0.1920975,23755.0,23753.0,0.10747659]
[1659282511270,0.6129965,23755.0,23753.0,0.00225959]
[1659282511480,0.61462222,23755.0,23753.0,0.00225959]
[1659282512106,0.50985512,23755.0,23753.0,0.00225959]
[1659282512450,0.51144558,23755.0,23753.0,0.00225959]
[1659282512654,0.63228558,23755.0,23753.0,0.00225959]
[1659282513076,0.21138658,23755.0,23753.0,0.10799835]
[1659282513274,0.20979612,23755.0,23753.0,0.10747759]
[1659282513742,0.63068812,23755.0,23753.0,0.00225959]
[1659282514407,0.56827628,23755.0,23753.0,0.00225959]
[1659282516425,0.97553361,23755.0,23753.0,0.00225959]
[1659282518667,0.55464161,23755.0,23753.0,0.00225959]
[1659282518873,0.42905959,23755.0,23753.0,0.00225959]
[1659282519096,0.63949459,23755.0,23753.0,0.00225959]
[1659282521353,0.63949459,23755.0,23753.0,0.10748559]
[1659282522418,0.42905959,23755.0,23753.0,0.10748559]
[1659282522650,0.63951459,23755.0,23753.0,0.10748559]
[1659282524497,1.06044359,23755.0,23753.0,0.00225959]
[1659282525391,0.93488725,23755.0,23753.0,0.00225959]
[1659282530493,0.40725733,23754.0,23753.0,0.00225959]
[1659282530747,1.15075733,23754.0,23753.0,0.00225959]
[1659282530965,1.37656733,23754.0,23753.0,0.00225959]
[1659282531426,1.68777704,23754.0,23753.0,0.00225959]
[1659282531646,2.38777705,23754.0,23753.0,0.00225959]
[1659282533680,2.38777705,23754.0,23744.0,0.001]
[1659282533681,0.105264,23753.0,23744.0,0.001]
[1659282533889,1.28561359,23751.0,23744.0,0.001]
[1659282534107,0.631585,23749.0,23744.0,0.001]
[1659282534789,0.40725733,23748.0,23744.0,0.001]
[1659282535031,1.075165,23747.0,23744.0,0.001]
[1659282535248,1.05725733,23746.0,23744.0,0.001]
[1659282535470,1.15075733,23745.0,23744.0,0.001]
[1659282535701,0.85075733,23745.0,23744.0,0.001]
[1659282536597,1.06134233,23745.0,23744.0,0.001]
[1659282537574,1.22143453,23745.0,23744.0,0.00359149]
[1659282538005,1.26643453,23745.0,23744.0,0.00359149]
[1659282538222,1.14089594,23745.0,23744.0,0.00359149]
[1659282538493,1.14256242,23745.0,23744.0,0.00359149]
[1659282538954,1.14256242,23745.0,23743.0,0.00069149]
[1659282539158,0.82840133,23744.0,23743.0,0.00069149]
[1659282539381,0.40725733,23744.0,23743.0,0.00069149]
[1659282540116,0.45325733,23744.0,23743.0,0.00069149]
[1659282540517,0.046,23744.0,23743.0,0.04069149]
[1659282540921,0.046,23744.0,23743.0,0.00069149]
[1659282541720,0.046,23744.0,23743.0,0.002961]
[1659282541962,0.210555,23744.0,23743.0,0.002961]
[1659282542256,0.238555,23744.0,23743.0,0.079961]
[1659282542645,0.028,23744.0,23743.0,0.079961]
[1659282543313,0.00166648,23745.0,23743.0,0.002961]
[1659282543602,0.40892381,23745.0,23743.0,0.002961]
[1659282543834,0.00166648,23745.0,23743.0,0.002961]
[1659282544075,0.03666648,23745.0,23744.0,0.04616108]
[1659282544384,0.03542903,23745.0,23744.0,0.50013608]
[1659282544568,0.01669158,23745.0,23744.0,0.54013608]
[1659282544817,0.4435,23751.0,23746.0,0.105238]
[1659282544818,0.42414384,23751.0,23746.0,0.105238]
[1659282545053,0.15733042,23750.0,23747.0,0.129]
[1659282545276,0.34427858,23751.0,23747.0,0.129]
[1659282545494,0.48881238,23751.0,23747.0,0.129]
[1659282545716,0.42581449,23751.0,23748.0,0.03620633]
[1659282545977,0.03841005,23751.0,23748.0,0.03620633]
[1659282546203,0.69891864,23753.0,23748.0,0.03620633]
[1659282546432,0.51270211,23755.0,23748.0,0.03620633]
[1659282546672,0.28022379,23754.0,23749.0,0.1288]
[1659282547125,0.14747111,23754.0,23749.0,0.1288]
[1659282547369,0.14747111,23754.0,23749.0,0.53605733]
[1659282547618,0.44747111,23754.0,23749.0,0.40725733]
[1659282548019,0.44747111,23754.0,23749.0,0.48625733]
[1659282548239,0.32151361,23754.0,23749.0,0.48625733]
[1659282548516,0.25853486,23754.0,23749.0,0.48625733]
[1659282548721,0.46900386,23754.0,23749.0,0.48625733]
[1659282549421,0.46900386,23754.0,23749.0,0.40725733]
[1659282549647,0.4706097,23754.0,23749.0,0.40444495]
[1659282550164,0.210485,23753.0,23749.0,0.42644495]
[1659282551752,1e-08,23753.0,23749.0,0.42644495]
[1659282551976,1e-08,23753.0,23749.0,0.40444495]
[1659282552198,0.21048501,23753.0,23749.0,0.44844495]
[1659282553406,0.14750626,23753.0,23749.0,0.40444495]
[1659282553639,0.08452751,23753.0,23749.0,0.40444495]
[1659282553900,0.02154876,23753.0,23749.0,0.40444495]
[1659282554117,0.38115985,23754.0,23749.0,0.44844495]
[1659282554345,0.210485,23753.0,23749.0,0.44844495]
[1659282554567,0.18967485,23753.0,23749.0,0.44844495]
[1659282554812,0.14960996,23753.0,23749.0,0.44844495]
[1659282555065,0.10799072,23753.0,23749.0,0.44844495]
[1659282555272,0.0871811,23753.0,23749.0,0.44844495]
[1659282555497,0.0871811,23753.0,23749.0,0.40444495]
[1659282555721,0.08792766,23753.0,23749.0,0.40444495]
[1659282556211,0.08792766,23753.0,23749.0,0.46944495]
[1659282557493,0.08792766,23753.0,23749.0,0.40444495]
[1659282558184,0.06712176,23753.0,23749.0,0.48344495]
[1659282558405,0.28871682,23754.0,23753.0,0.0208059]
[1659282558625,0.24710716,23754.0,23753.0,0.0208059]
[1659282558862,0.4273853,23754.0,23753.0,0.0208059]
[1659282559373,1.79222933,23754.0,23753.0,0.0208059]
[1659282559602,1.82924676,23754.0,23753.0,0.02298689]
[1659282559833,1.76626419,23754.0,23753.0,0.02298689]
[1659282561225,1.81626419,23754.0,23753.0,0.02298689]
[1659282561439,2.17127783,23754.0,23753.0,0.02298689]
[1659282561907,2.86127784,23754.0,23753.0,0.02298689]
[1659282562131,2.93027784,23754.0,23753.0,0.02298689]
[1659282562625,2.2252642,23754.0,23753.0,0.02298689]
[1659282563147,1.52526419,23754.0,23753.0,0.02298689]
[1659282563391,1.45626419,23754.0,23753.0,0.02298689]
[1659282563842,1.03528019,23754.0,23753.0,0.02298689]
[1659282564071,1.11428019,23754.0,23753.0,0.02298689]
[1659282564754,0.38912064,23754.0,23753.0,0.02298689]
[1659282564984,0.59960864,23754.0,23753.0,0.02298689]
[1659282566138,0.59960864,23754.0,23753.0,0.08598689]
[1659282567310,0.59960864,23754.0,23753.0,0.02298689]
[1659282568214,0.53049571,23754.0,23753.0,0.08598689]
[1659282568436,0.46751314,23754.0,23753.0,0.08598689]
[1659282569426,0.46751314,23754.0,23753.0,0.02298689]
[1659282571183,0.46751314,23754.0,23753.0,0.08598689]
[1659282571568,0.09096548,23754.0,23753.0,0.08598689]
[1659282571769,0.53446548,23754.0,23753.0,0.08598689]
[1659282572176,0.53446548,23754.0,23753.0,0.14898689]
[1659282572589,0.53446548,23754.0,23753.0,0.02298689]
[1659282574068,0.53446548,23754.0,23753.0,0.07698689]
[1659282575419,0.53446548,23754.0,23753.0,0.02298689]
[1659282576146,0.53446548,23754.0,23753.0,0.07998689]
[1659282577415,0.53446548,23754.0,23753.0,0.02298689]
[1659282577645,0.94172281,23754.0,23753.0,0.02298689]
[1659282578072,0.94172281,23754.0,23753.0,0.07998689]
[1659282578299,1.02662351,23754.0,23753.0,0.07998689]
[1659282578550,1.03662351,23754.0,23753.0,0.07998689]
[1659282579008,1.04926699,23754.0,23753.0,0.07998689]
[1659282579239,1.39977993,23754.0,23753.0,0.07998689]
[1659282579493,0.61942028,23752.0,23744.0,0.15166108]
[1659282579755,0.40887818,23749.0,23744.0,0.15166108]
[1659282580000,0.85075733,23748.0,23746.0,0.05]
[1659282580195,0.26554348,23752.0,23747.0,0.03467316]
[1659282580196,0.3,23752.0,23747.0,0.03467316]
[1659282580415,0.40725733,23751.0,23747.0,0.03467316]
[1659282580625,0.40725733,23751.0,23747.0,0.08467316]
[1659282580858,0.40725733,23751.0,23749.0,0.05]
[1659282581139,0.4435,23750.0,23747.0,0.08467316]
[1659282581372,0.40725733,23750.0,23747.0,0.08467316]
[1659282581593,0.40883875,23751.0,23747.0,0.08467316]
[1659282581811,0.40883875,23751.0,23747.0,0.12467316]
[1659282581812,0.00158142,23751.0,23747.0,0.12467316]
[1659282582090,0.00158142,23751.0,23747.0,0.20467316]
[1659282583018,0.44508142,23751.0,23747.0,0.20467316]
[1659282583247,0.00075908,23750.0,23747.0,0.20668296]
[1659282583468,0.00075908,23750.0,23747.0,0.12668296]
[1659282584129,0.00075908,23750.0,23747.0,0.18568296]
[1659282584375,0.00154979,23750.0,23747.0,0.18568296]
[1659282584791,0.00154979,23750.0,23748.0,0.03467316]
[1659282585480,0.00154979,23750.0,23747.0,0.1510098]
[1659282585935,0.00154979,23750.0,23747.0,0.0870098]
[1659282586157,0.00154979,23750.0,23747.0,0.1460098]
[1659282586413,0.00154979,23750.0,23748.0,0.03467316]
[1659282586635,0.00154979,23750.0,23747.0,0.14801828]
[1659282587338,0.21204679,23750.0,23747.0,0.1460098]
[1659282587570,0.21204679,23750.0,23748.0,0.0470098]
[1659282587793,0.21204679,23750.0,23747.0,0.04]
[1659282588689,0.21204679,23750.0,23747.0,0.07735871]
[1659282589318,0.21204679,23750.0,23747.0,0.099]
[1659282590582,0.21204679,23750.0,23748.0,0.03467316]
[1659282590751,0.21204679,23750.0,23747.0,0.099]
[1659282591164,0.21204679,23750.0,23747.0,0.10121099]
[1659282591626,0.08655388,23750.0,23749.0,0.1470098]
[1659282591929,0.08655388,23750.0,23747.0,0.06121099]
[1659282592141,0.08655388,23750.0,23747.0,0.12021099]
[1659282592352,0.00166516,23749.0,23748.0,0.1470098]
[1659282593254,0.00166516,23749.0,23748.0,0.03467316]
[1659282593461,0.21216816,23749.0,23747.0,0.06121099]
[1659282594146,0.21216816,23749.0,23747.0,0.12521099]
[1659282594368,0.21216816,23749.0,23747.0,0.06621099]
[1659282595081,0.21216816,23749.0,23748.0,0.04]
[1659282596017,0.21216816,23749.0,23748.0,0.12]
[1659282597549,0.21216816,23749.0,23748.0,0.04]
[1659282598051,0.08666997,23749.0,23748.0,0.12]
[1659282598502,0.08827057,23749.0,23748.0,0.12]
[1659282599383,0.08666997,23749.0,23748.0,0.04]
[1659282600086,0.08666997,23749.0,23748.0,0.104]
[1659282601476,0.08666997,23749.0,23748.0,0.13880104]
[1659282601733,0.42178271,23751.0,23745.0,0.05]
[1659282601948,0.42178271,23751.0,23746.0,0.40725733]
[1659282602177,0.42178271,23751.0,23748.0,0.056]
[1659282602434,0.210496,23750.0,23748.0,0.056]
[1659282602666,0.210496,23750.0,23748.0,0.05783969]
[1659282603370,0.631501,23750.0,23748.0,0.00183969]
[1659282604047,0.710501,23750.0,23748.0,0.00183969]
[1659282605438,0.631501,23750.0,23748.0,0.00183969]
[1659282606054,0.710501,23750.0,23748.0,0.00183969]
[1659282606560,0.710501,23750.0,23746.0,0.51250833]
[1659282607208,0.710501,23750.0,23747.0,0.03467316]
[1659282607432,0.210496,23750.0,23747.0,0.13991916]
[1659282607932,0.631503,23750.0,23747.0,0.105246]
[1659282608108,0.691503,23750.0,23747.0,0.003]
[1659282608338,0.691503,23750.0,23747.0,0.0500098]
[1659282609032,0.691503,23750.0,23748.0,0.03467316]
[1659282609311,0.691503,23750.0,23747.0,0.0500098]
[1659282609526,0.631503,23750.0,23746.0,0.51251133]
[1659282610211,0.270496,23750.0,23747.0,0.03767316]
[1659282610469,0.270496,23750.0,23747.0,0.14513053]
[1659282610626,0.270496,23750.0,23747.0,0.11045737]
[1659282611081,0.265496,23750.0,23747.0,0.11045737]
[1659282611318,0.265496,23750.0,23747.0,0.03988653]
[1659282611523,0.21289497,23751.0,23748.0,0.105244]
[1659282611762,0.210492,23750.0,23748.0,0.105244]
[1659282613361,0.631489,23750.0,23747.0,0.08121337]
[1659282614730,0.631489,23750.0,23747.0,0.079]
[1659282615372,0.631489,23750.0,23747.0,0.0470098]
[1659282615591,0.631489,23750.0,23747.0,0.04922121]
[1659282615811,0.631489,23750.0,23747.0,0.00221141]
[1659282616029,0.631489,23750.0,23747.0,0.08121141]
[1659282616727,0.736755,23750.0,23747.0,0.08121141]
[1659282617012,0.210512,23749.0,23747.0,0.12382574]
[1659282617446,0.210512,23749.0,23747.0,0.00221141]
[1659282617985,0.210512,23749.0,23747.0,0.08121141]
[1659282618413,0.631528,23749.0,23747.0,0.079]
[1659282618632,0.631528,23749.0,23747.0,0.1260098]
[1659282619084,0.631528,23749.0,23747.0,0.079]
[1659282619284,0.631528,23749.0,23748.0,0.05]
[1659282619497,0.631528,23749.0,23747.0,0.1522608]
[1659282620107,0.631528,23749.0,23747.0,0.26593396]
[1659282620300,0.631528,23749.0,23747.0,0.2312608]
[1659282621124,0.631528,23749.0,23747.0,0.1260098]
[1659282621431,0.50599129,23749.0,23747.0,0.0470098]
[1659282621923,0.50599129,23749.0,23746.0,0.51251433]
[1659282622116,0.50599129,23749.0,23747.0,0.079]
[1659282622340,0.50599129,23749.0,23747.0,0.0812323]
[1659282622577,0.50599129,23749.0,23748.0,0.0130787]
[1659282624161,0.50599129,23749.0,23748.0,0.0930787]
[1659282624373,0.00175086,23750.0,23748.0,0.0930787]
[1659282624656,0.21224186,23750.0,23749.0,0.03500576]
[1659282624890,0.21224186,23750.0,23748.0,0.0930787]
[1659282625576,0.21224186,23750.0,23748.0,0.1400885]
[1659282626049,0.21224186,23750.0,23748.0,0.1390885]
[1659282626256,0.21224186,23750.0,23748.0,0.14131688]
[1659282626533,0.00175086,23750.0,23748.0,0.17632265]
[1659282626803,0.00175086,23750.0,23748.0,0.35179188]
[1659282627462,0.00175086,23750.0,23748.0,0.27279188]
[1659282627642,0.21224286,23750.0,23748.0,0.08424395]
[1659282627860,0.00175086,23750.0,23749.0,0.0130787]
[1659282628103,0.21127371,23751.0,23750.0,0.12380303]
[1659282628379,0.63225771,23751.0,23750.0,0.12380303]
[1659282629208,0.21127371,23751.0,23750.0,0.12380303]
[1659282630104,0.26427371,23751.0,23750.0,0.12380303]
[1659282630551,0.68525371,23751.0,23750.0,0.1260275]
[1659282631227,0.26427371,23751.0,23750.0,0.1260275]
[1659282631441,0.21127371,23751.0,23750.0,0.1260275]
[1659282632092,0.26427371,23751.0,23750.0,0.1260275]
[1659282632602,0.05546863,23751.0,23750.0,0.1260275]
[1659282633445,0.04696863,23751.0,23750.0,0.1260275]
[1659282634097,0.09996863,23751.0,23750.0,0.1260275]
[1659282634546,1e-08,23751.0,23750.0,0.1260275]
[1659282635213,1e-08,23751.0,23750.0,0.16070066]
[1659282635458,0.00084001,23751.0,23750.0,0.16070066]
[1659282635664,0.00084001,23751.0,23750.0,0.1260275]
[1659282636175,0.00084001,23751.0,23750.0,0.2060275]
[1659282636622,0.00084001,23751.0,23750.0,0.20528601]
[1659282636846,0.00084001,23751.0,23750.0,0.21836471]
[1659282637279,0.00084001,23751.0,23750.0,0.30188823]
[1659282637501,0.00084001,23751.0,23750.0,0.22188823]
[1659282637931,0.00084001,23751.0,23750.0,0.18286471]
[1659282638145,0.00084001,23751.0,23750.0,0.26286471]
[1659282638368,0.00084001,23751.0,23750.0,0.21836471]
[1659282638917,0.63399127,23753.0,23750.0,0.21836471]
[1659282639138,0.63399127,23753.0,23751.0,0.6970098]
[1659282639139,0.42352827,23753.0,23751.0,0.6970098]
[1659282639344,0.82902938,23759.0,23752.0,0.33467316]
[1659282639345,1.11692938,23759.0,23752.0,0.33467316]
[1659282639583,1.11692938,23759.0,23753.0,0.1470098]
[1659282639584,0.210436,23757.0,23753.0,0.1470098]
[1659282639798,0.61769333,23757.0,23753.0,0.2522278]
[1659282640469,0.61769333,23757.0,23756.0,0.1470098]
[1659282640470,1.01958526,23757.0,23756.0,0.1470098]
[1659282640690,0.99878308,23757.0,23754.0,0.10745343]
[1659282640941,0.93572222,23757.0,23754.0,0.10745343]
[1659282641167,0.93572222,23757.0,23756.0,0.1470098]
[1659282641666,0.93572222,23757.0,23752.0,0.00147907]
[1659282641883,1.23572222,23757.0,23752.0,0.00147907]
[1659282642112,1.31472222,23757.0,23752.0,0.00147907]
[1659282642558,1.29391951,23757.0,23752.0,0.00147907]
[1659282642771,1.2731168,23757.0,23752.0,0.00147907]
[1659282643007,1.2315135,23757.0,23752.0,0.00147907]
[1659282643200,6.892e-05,23756.0,23752.0,0.00147907]
[1659282643429,0.210465,23755.0,23753.0,0.03679081]
[1659282643657,0.210465,23755.0,23753.0,0.0470098]
[1659282643871,0.210465,23755.0,23752.0,0.00147907]
[1659282644099,0.210465,23755.0,23753.0,0.078]
[1659282644319,0.210465,23755.0,23753.0,0.1250098]
[1659282644538,0.210465,23755.0,23753.0,0.11502046]
[1659282644803,0.210465,23755.0,23753.0,0.078]
[1659282645263,0.210465,23755.0,23753.0,0.1250098]
[1659282645492,0.210465,23755.0,23753.0,0.0470098]
[1659282645717,0.210465,23755.0,23754.0,0.00147549]
[1659282646164,0.1896591,23755.0,23754.0,0.00147549]
[1659282646379,0.16885427,23755.0,23754.0,0.00147549]
[1659282646709,0.14804944,23755.0,23754.0,0.00147549]
[1659282647744,0.02243533,23755.0,23754.0,0.01455419]
[1659282648018,6.183e-05,23756.0,23754.0,0.01455419]
[1659282648250,1.55261832,23757.0,23754.0,0.09255419]
[1659282649172,0.210451,23756.0,23754.0,0.09255419]
[1659282649384,0.210451,23756.0,23754.0,0.01455419]
[1659282650068,0.210451,23756.0,23754.0,0.07755419]
[1659282650957,0.21122103,23756.0,23754.0,0.07755419]
[1659282651421,0.21122103,23756.0,23754.0,0.01455419]
[1659282651422,0.00077003,23756.0,23754.0,0.01455419]
[1659282651916,0.00077003,23756.0,23755.0,0.2758098]
[1659282652589,0.00077003,23756.0,23755.0,0.5797848]
[1659282653090,0.00077003,23756.0,23755.0,0.2888885]
[1659282653554,0.00077003,23756.0,23755.0,1.03169083]
[1659282653764,0.00077003,23756.0,23755.0,0.72771583]
[1659282654221,0.00077003,23756.0,23755.0,0.80071583]
[1659282654641,0.00077003,23756.0,23755.0,0.64034583]
[1659282654850,0.210922,23759.0,23755.0,0.64034583]
[1659282654965,0.210922,23759.0,23756.0,0.03467316]
[1659282655410,0.210922,23759.0,23757.0,0.00866828]
[1659282656067,0.210922,23759.0,23757.0,0.06466828]
[1659282656488,0.210922,23759.0,23757.0,0.056]
[1659282657139,0.21099341,23759.0,23757.0,0.056]
[1659282657348,0.21099341,23759.0,23756.0,0.03467316]
[1659282658043,0.21099341,23759.0,23757.0,0.00147028]
[1659282658044,0.210922,23759.0,23757.0,0.00147028]
[1659282658481,0.21099341,23759.0,23757.0,0.00147028]
[1659282658868,0.00057141,23759.0,23757.0,0.00147028]
[1659282659072,0.00057141,23759.0,23758.0,0.06298818]
[1659282659281,0.0005,23759.0,23758.0,0.06298818]
[1659282659775,0.0005,23759.0,23758.0,0.06550586]
[1659282660115,0.0005,23759.0,23758.0,0.11850586]
[1659282660343,0.0005,23759.0,23758.0,0.11598818]
[1659282660978,0.0005,23759.0,23758.0,0.11850586]
[1659282661195,0.0005,23759.0,23758.0,0.11598818]
[1659282661418,0.0005,23759.0,23758.0,0.06298818]
[1659282661881,0.0005,23759.0,23758.0,0.06618818]
[1659282662072,0.0005,23759.0,23758.0,0.06298818]
[1659282662782,0.0005,23759.0,23758.0,0.08]
[1659282664190,0.0005,23759.0,23758.0,0.99807518]
[1659282664424,0.0005,23759.0,23758.0,1.6509702]
[1659282664656,0.0005,23759.0,23758.0,2.1325402]
[1659282665827,0.0005,23759.0,23758.0,2.0525402]
[1659282666066,0.0005,23759.0,23758.0,2.13419777]
[1659282667183,0.00133873,23759.0,23758.0,1.79543126]
[1659282667425,0.00133873,23759.0,23758.0,1.11373976]
[1659282667896,0.00133873,23759.0,23758.0,2.05941429]
[1659282668108,0.00133873,23759.0,23758.0,1.47873976]
[1659282668330,0.00133873,23759.0,23758.0,1.48423976]
[1659282668550,0.00133873,23759.0,23758.0,1.52873976]
[1659282668751,0.00133873,23759.0,23758.0,1.47873976]
[1659282668967,0.00133873,23759.0,23758.0,1.17873976]
[1659282669194,0.00133873,23759.0,23758.0,1.82873976]
[1659282669413,0.00133873,23759.0,23758.0,2.0538911]
[1659282669675,0.00133873,23759.0,23758.0,1.73583094]
[1659282669869,0.00133873,23759.0,23758.0,2.08583094]
[1659282669993,0.00133873,23759.0,23758.0,2.15883094]
[1659282670864,0.00133873,23759.0,23758.0,2.16433094]